fUST/lending_fUST_20250206
["ID","MTS","AMOUNT","RATE_DAILY","PERIOD"]
[351921697,1738845048345,-500.0,0.00013972,2]
[351921698,1738845048355,-500.0,0.00013972,2]
[351921699,1738845048366,-500.0,0.00013972,2]
[351921700,1738845048376,-500.0,0.00013972,2]
[351921701,1738845048386,-151.0,0.00013972,2]
[351921702,1738845048397,-151.0,0.00013972,2]
[351921703,1738845048408,-500.0,0.00013972,2]
[351921704,1738845048418,-1607.36,0.00013972,2]
[351921705,1738845048429,-6024.69,0.00013972,2]
[351921706,1738845048439,-752.73,0.00013972,2]
[351921707,1738845048449,-193.285906,0.00013972,2]
[351921708,1738845048459,-4124.83,0.00013972,2]
[351921709,1738845048470,-193.285906,0.00013972,2]
[351921710,1738845048482,-151.0,0.00013972,2]
[351921711,1738845048492,-500.0,0.00013972,2]
[351921712,1738845048503,-151.0,0.00013972,2]
[351921713,1738845048513,-500.0,0.00013972,2]
[351921714,1738845048524,-1248.63,0.00013972,2]
[351921715,1738845048535,-520.68859544,0.00013972,2]
[351921716,1738845048546,-500.0,0.00013972,2]
[351921717,1738845048558,-15821.89,0.00013972,2]
[351921718,1738845048569,-500.0,0.00013972,2]
[351921719,1738845048579,-500.0,0.00013972,2]
[351921720,1738845048591,-500.0,0.00013972,2]
[351921721,1738845048602,-500.0,0.00013972,2]
[351921722,1738845048612,-500.0,0.00013972,2]
[351921723,1738845048623,-500.0,0.00013972,2]
[351921724,1738845048633,-500.0,0.00013972,2]
[351921725,1738845048644,-1197.69,0.00013972,2]
[351921726,1738845048655,-500.0,0.00013972,2]
[351921727,1738845048666,-1528.7,0.00013972,2]
[351921728,1738845048676,-1029.67,0.00013972,2]
[351921729,1738845048687,-6237.02,0.00013972,2]
[351921730,1738845048698,-500.0,0.00013972,2]
[351921731,1738845048709,-678.98,0.00013972,2]
[351921732,1738845048719,-500.0,0.00013972,2]
[351921733,1738845048730,-500.0,0.00013972,2]
[351921734,1738845048743,-4916.44,0.00013972,2]
[351921735,1738845048753,-190.939525,0.00013972,2]
[351921736,1738845048763,-1347.6,0.00013972,2]
[351921737,1738845048774,-1391.49,0.00013972,2]
[351921738,1738845048786,-190.939525,0.00013972,2]
[351921739,1738845048796,-500.0,0.00013972,2]
[351921740,1738845048808,-500.0,0.00013972,2]
[351921741,1738845048819,-2612.68,0.00013972,2]
[351921742,1738845048830,-500.0,0.00013972,2]
[351921743,1738845048841,-2131.44,0.00013972,2]
[351921744,1738845048852,-47987.37,0.00013972,2]
[351921745,1738845048863,-500.0,0.00013972,2]
[351921746,1738845048873,-500.0,0.00013972,2]
[351921747,1738845048883,-500.0,0.00013972,2]
[351921748,1738845048893,-740.85,0.00013972,2]
[351921749,1738845048904,-500.0,0.00013972,2]
[351921750,1738845048915,-500.0,0.00013972,2]
[351921751,1738845048926,-500.0,0.00013972,2]
[351921752,1738845048937,-492.9554816,0.00013972,2]
[351921753,1738845048947,-2678.08,0.00013972,2]
[351921754,1738845048958,-989.69,0.00013972,2]
[351921755,1738845048968,-268.272087,0.00013972,2]
[351921756,1738845048979,-794.74,0.00013972,2]
[351921757,1738845048989,-500.0,0.00013972,2]
[351921758,1738845049000,-268.272087,0.00013972,2]
[351921759,1738845049010,-1729.34,0.00013972,2]
[351921760,1738845049019,-500.0,0.00013972,2]
[351921761,1738845049029,-10501.33,0.00013972,2]
[351921762,1738845049039,-1543.16,0.00013972,2]
[351921763,1738845049049,-814.56,0.00013972,2]
[351921764,1738845049059,-2483.84,0.00013972,2]
[351921765,1738845049069,-1416.57,0.00013972,2]
[351921766,1738845049079,-500.0,0.00013972,2]
[351921767,1738845049088,-500.0,0.00013972,2]
[351921768,1738845049098,-1632.46,0.00013972,2]
[351921769,1738845049108,-151.0,0.00013972,2]
[351921770,1738845049118,-500.0,0.00013972,2]
[351921771,1738845049128,-500.0,0.00013972,2]
[351921772,1738845049137,-500.0,0.00013972,2]
[351921773,1738845049146,-734.55,0.00013972,2]
[351921774,1738845049155,-500.0,0.00013972,2]
[351921775,1738845049165,-500.0,0.00013972,2]
[351921776,1738845049174,-500.0,0.00013972,2]
[351921777,1738845049183,-3431.74,0.00013972,2]
[351921778,1738845049195,-500.0,0.00013972,2]
[351921779,1738845049204,-915.88,0.00013972,2]
[351921780,1738845049214,-151.0,0.00013972,2]
[351921781,1738845049223,-624.18,0.00013972,2]
[351921782,1738845049234,-500.0,0.00013972,2]
[351921783,1738845049245,-500.0,0.00013972,2]
[351921784,1738845049255,-901.64,0.00013972,2]
[351921785,1738845049266,-3761.95,0.00013972,2]
[351921786,1738845049276,-151.0,0.00013972,2]
[351921787,1738845049286,-1979.87,0.00013972,2]
[351921788,1738845049297,-10072.48,0.00013972,2]
[351921789,1738845049306,-151.0,0.00013972,2]
[351921790,1738845049315,-4183.41,0.00013972,2]
[351921791,1738845049325,-500.0,0.00013972,2]
[351921792,1738845049334,-521.44,0.00013972,2]
[351921793,1738845049344,-1468.71,0.00013972,2]
[351921794,1738845049357,-965.76,0.00013972,2]
[351921795,1738845049367,-500.0,0.00013972,2]
[351921796,1738845049376,-1890.43,0.00013972,2]
[351921797,1738845049385,-500.0,0.00013972,2]
[351921798,1738845049396,-500.0,0.00013972,2]
[351921799,1738845049405,-1790.44,0.00013972,2]
[351921800,1738845049415,-500.0,0.00013972,2]
[351921801,1738845049424,-810.288646,0.00013972,2]
[351921802,1738845049434,-537.43,0.00013972,2]
[351921803,1738845049445,-646.4,0.00013972,2]
[351921804,1738845049457,-1469.49,0.00013972,2]
[351921805,1738845049467,-3633.95,0.00013972,2]
[351921806,1738845049477,-517.54206974,0.00013972,2]
[351921807,1738845049486,-810.288646,0.00013972,2]
[351921808,1738845049495,-500.0,0.00013972,2]
[351921809,1738845049505,-870.22,0.00013972,2]
[351921810,1738845049514,-500.0,0.00013972,2]
[351921811,1738845049525,-500.0,0.00013972,2]
[351921812,1738845049534,-151.0,0.00013972,2]
[351921813,1738845049543,-500.0,0.00013972,2]
[351921814,1738845049553,-500.0,0.00013972,2]
[351921815,1738845049562,-504.381993,0.00013972,2]
[351921816,1738845049571,-500.0,0.00013972,2]
[351921817,1738845049581,-500.0,0.00013972,2]
[351921818,1738845049591,-151.0,0.00013972,2]
[351921819,1738845049600,-1111.42,0.00013972,2]
[351921820,1738845049610,-970.96,0.00013972,2]
[351921821,1738845049619,-1141.43,0.00013972,2]
[351921822,1738845049629,-500.0,0.00013972,2]
[351921823,1738845049638,-500.0,0.00013972,2]
[351921824,1738845049647,-1407.63,0.00013972,2]
[351921825,1738845049657,-844.39,0.00013972,2]
[351921826,1738845049667,-500.0,0.00013972,2]
[351921827,1738845049676,-796.93,0.00013972,2]
[351921828,1738845049686,-151.0,0.00013972,2]
[351921829,1738845049696,-1643.43,0.00013972,2]
[351921830,1738845049705,-3681.28,0.00013972,2]
[351921831,1738845049715,-400.0,0.00013973,2]
[351921832,1738845049724,-280.47120596,0.00013997,2]
[351921833,1738845049733,-4686.0,0.00014,2]
[351921834,1738845049743,-151.0,0.00014,2]
[351921835,1738845049752,-151.0,0.00014,2]
[351921836,1738845049762,-1000.0,0.00014,14]
[351921837,1738845049771,-1000.0,0.00014,5]
[351921838,1738845049780,-7766.27975644,0.00014,2]
[351921839,1738845049790,-2302.53919911,0.00014009,2]
[351921840,1738845049799,-810.288646,0.00014028,2]
[351921841,1738845049808,-810.288646,0.00014028,2]
[351921842,1738845049818,-151.0,0.00014028,2]
[351921843,1738845049827,-1278.97486873,0.00014038,2]
[351921844,1738845049837,-251.87730176,0.00014076,2]
[351921845,1738845049846,-202.30860172,0.000141,2]
[351921846,1738845049855,-733.0,0.000141,5]
[351921847,1738845049864,-151.0,0.000141,2]
[351921848,1738845049873,-151.0,0.000141,2]
[351921849,1738845049883,-1603.3277115,0.00014103,2]
[351921850,1738845049892,-500.0,0.00014109,2]
[351921851,1738845049901,-509.0015204,0.00014109,2]
[351921852,1738845049911,-500.0,0.00014109,2]
[351921853,1738845049920,-500.0,0.00014109,2]
[351921854,1738845049930,-500.0,0.00014109,2]
[351921855,1738845049940,-500.0,0.00014109,2]
[351921856,1738845049949,-151.0,0.00014109,2]
[351921857,1738845049959,-326.376,0.00014109,2]
[351921858,1738845049968,-500.0,0.00014109,2]
[351921859,1738845049978,-614.88,0.00014109,2]
[351921860,1738845049994,-345.32158017,0.00014109,2]
[351921861,1738845050009,-500.0,0.00014109,2]
[351921862,1738845050020,-500.0,0.00014109,2]
[351921863,1738845050033,-500.0,0.00014109,2]
[351921864,1738845050044,-151.0,0.00014109,2]
[351921865,1738845050055,-500.0,0.00014109,2]
[351921866,1738845050064,-500.0,0.00014109,2]
[351921867,1738845050075,-500.0,0.00014109,2]
[351921868,1738845050086,-381.46,0.00014109,2]
[351921869,1738845050096,-500.0,0.00014109,2]
[351921870,1738845050106,-729.89,0.00014109,2]
[351921871,1738845050116,-500.0,0.00014109,2]
[351921872,1738845050126,-905.09,0.00014109,2]
[351921873,1738845050135,-500.0,0.00014109,2]
[351921874,1738845050145,-151.0,0.00014109,2]
[351921875,1738845050155,-500.0,0.00014109,2]
[351921876,1738845050164,-500.0,0.00014109,2]
[351921877,1738845050175,-500.0,0.00014109,2]
[351921878,1738845050184,-687.79,0.00014109,2]
[351921879,1738845050197,-806.87,0.00014109,2]
[351921880,1738845050207,-151.0,0.00014109,2]
[351921881,1738845050218,-1012.02,0.00014109,2]
[351921882,1738845050228,-151.0,0.00014109,2]
[351921883,1738845050240,-500.0,0.00014109,2]
[351921884,1738845050251,-500.0,0.00014109,2]
[351921885,1738845050261,-634.13990772,0.00014109,2]
[351921886,1738845050271,-600.86,0.00014109,2]
[351921887,1738845050281,-500.0,0.00014109,2]
[351921888,1738845050291,-500.0,0.00014109,2]
[351921889,1738845050301,-479.19397539,0.00014109,2]
[351921890,1738845050311,-500.0,0.00014109,2]
[351921891,1738845050320,-500.0,0.00014109,2]
[351921892,1738845050330,-1210.77,0.00014109,2]
[351921893,1738845050340,-500.0,0.00014109,2]
[351921894,1738845050349,-151.0,0.00014109,2]
[351921895,1738845050358,-500.0,0.00014109,2]
[351921896,1738845050369,-500.0,0.00014109,2]
[351921897,1738845050378,-500.0,0.00014109,2]
[351921898,1738845050387,-151.0,0.00014109,2]
[351921899,1738845050396,-151.0,0.00014109,2]
[351921900,1738845050405,-306.36551695,0.00014109,2]
[351921901,1738845050414,-500.0,0.00014109,2]
[351921902,1738845050423,-1782.42,0.00014109,2]
[351921903,1738845050432,-500.0,0.00014109,2]
[351921904,1738845050442,-500.0,0.00014109,2]
[351921905,1738845050451,-612.57339544,0.00014109,2]
[351921906,1738845050460,-1898.5,0.00014109,2]
[351921907,1738845050470,-721.43,0.00014109,2]
[351921908,1738845050479,-500.0,0.00014109,2]
[351921909,1738845050489,-151.0,0.00014109,2]
[351921910,1738845050499,-151.0,0.00014109,2]
[351921911,1738845050508,-500.0,0.00014109,2]
[351921912,1738845050517,-151.0,0.00014109,2]
[351921913,1738845050526,-151.0,0.00014109,2]
[351921914,1738845050536,-500.0,0.00014109,2]
[351921915,1738845050545,-869.21,0.00014109,2]
[351921916,1738845050554,-500.0,0.00014109,2]
[351921917,1738845050564,-1389.14,0.00014109,2]
[351921918,1738845050573,-503.29,0.00014109,2]
[351921919,1738845050582,-1602.43,0.00014109,2]
[351921920,1738845050591,-151.0,0.00014109,2]
[351921921,1738845050600,-500.0,0.00014109,2]
[351921922,1738845050610,-500.0,0.00014109,2]
[351921923,1738845050619,-380.58711,0.00014109,2]
[351921924,1738845050629,-500.0,0.00014109,2]
[351921925,1738845050638,-380.58711,0.00014109,2]
[351921926,1738845050647,-185.903807,0.00014109,2]
[351921927,1738845050657,-750.97,0.00014109,2]
[351921928,1738845050666,-185.903807,0.00014109,2]
[351921929,1738845050676,-1064.84,0.00014109,2]
[351921930,1738845050685,-500.0,0.00014109,2]
[351921931,1738845050694,-570.88527049,0.00014109,2]
[351921932,1738845050704,-500.0,0.00014109,2]
[351921933,1738845050838,-2354.32,0.00014109,2]
[351921934,1738845050847,-912.73,0.00014109,2]
[351921935,1738845050857,-500.0,0.00014109,2]
[351921936,1738845050866,-500.0,0.00014109,2]
[351921937,1738845050876,-500.0,0.00014109,2]
[351921938,1738845050886,-206.959826,0.00014109,2]
[351921939,1738845050895,-151.0,0.00014109,2]
[351921940,1738845050906,-500.0,0.00014109,2]
[351921941,1738845050915,-1607.36,0.00014109,2]
[351921942,1738845050925,-6024.69,0.00014109,2]
[351921943,1738845050936,-752.73,0.00014109,2]
[351921944,1738845050945,-193.285906,0.00014109,2]
[351921945,1738845050955,-4124.83,0.00014109,2]
[351921946,1738845050964,-193.285906,0.00014109,2]
[351921947,1738845050974,-151.0,0.00014109,2]
[351921948,1738845050984,-634.75,0.00014109,2]
[351921949,1738845050993,-151.0,0.00014109,2]
[351921950,1738845051002,-500.0,0.00014109,2]
[351921951,1738845051011,-1248.63,0.00014109,2]
[351921952,1738845051021,-500.0,0.00014109,2]
[351921953,1738845051030,-15821.89,0.00014109,2]
[351921954,1738845051039,-500.0,0.00014109,2]
[351921955,1738845051048,-500.0,0.00014109,2]
[351921956,1738845051058,-616.8449243,0.00014109,2]
[351921957,1738845051067,-500.0,0.00014109,2]
[351921958,1738845051076,-616.92141906,0.00014109,2]
[351921959,1738845051085,-500.0,0.00014109,2]
[351921960,1738845051095,-500.0,0.00014109,2]
[351921961,1738845051106,-1197.69,0.00014109,2]
[351921962,1738845051115,-1528.7,0.00014109,2]
[351921963,1738845051125,-1029.67,0.00014109,2]
[351921964,1738845051134,-6237.02,0.00014109,2]
[351921965,1738845051144,-678.98,0.00014109,2]
[351921966,1738845051153,-500.0,0.00014109,2]
[351921967,1738845051163,-500.0,0.00014109,2]
[351921968,1738845051172,-4916.44,0.00014109,2]
[351921969,1738845051181,-190.939525,0.00014109,2]
[351921970,1738845051194,-1347.6,0.00014109,2]
[351921971,1738845051204,-1391.49,0.00014109,2]
[351921972,1738845051213,-190.939525,0.00014109,2]
[351921973,1738845051223,-500.0,0.00014109,2]
[351921974,1738845051232,-500.0,0.00014109,2]
[351921975,1738845051242,-2612.68,0.00014109,2]
[351921976,1738845051252,-2131.44,0.00014109,2]
[351921977,1738845051261,-47987.37,0.00014109,2]
[351921978,1738845051271,-500.0,0.00014109,2]
[351921979,1738845051280,-500.0,0.00014109,2]
[351921980,1738845051290,-740.85,0.00014109,2]
[351921981,1738845051299,-500.0,0.00014109,2]
[351921982,1738845051308,-500.0,0.00014109,2]
[351921983,1738845051318,-500.0,0.00014109,2]
[351921984,1738845051327,-2678.08,0.00014109,2]
[351921985,1738845051336,-989.69,0.00014109,2]
[351921986,1738845051345,-268.272087,0.00014109,2]
[351921987,1738845051354,-794.74,0.00014109,2]
[351921988,1738845051364,-500.0,0.00014109,2]
[351921989,1738845051373,-268.272087,0.00014109,2]
[351921990,1738845051382,-1729.34,0.00014109,2]
[351921991,1738845051392,-500.0,0.00014109,2]
[351921992,1738845051400,-10501.33,0.00014109,2]
[351921993,1738845051410,-1543.16,0.00014109,2]
[351921994,1738845051420,-814.56,0.00014109,2]
[351921995,1738845051430,-2483.84,0.00014109,2]
[351921996,1738845051439,-1416.57,0.00014109,2]
[351921997,1738845051448,-500.0,0.00014109,2]
[351921998,1738845051457,-500.0,0.00014109,2]
[351921999,1738845051466,-1632.46,0.00014109,2]
[351922000,1738845051475,-151.0,0.00014109,2]
[351922001,1738845051484,-500.0,0.00014109,2]
[351922002,1738845051493,-734.55,0.00014109,2]
[351922003,1738845051503,-500.0,0.00014109,2]
[351922004,1738845051512,-500.0,0.00014109,2]
[351922005,1738845051521,-500.0,0.00014109,2]
[351922006,1738845051530,-3431.74,0.00014109,2]
[351922007,1738845051539,-500.0,0.00014109,2]
[351922008,1738845051548,-915.88,0.00014109,2]
[351922009,1738845051558,-624.18,0.00014109,2]
[351922010,1738845051567,-500.0,0.00014109,2]
[351922011,1738845051577,-500.0,0.00014109,2]
[351922012,1738845051587,-901.64,0.00014109,2]
[351922013,1738845051596,-3761.95,0.00014109,2]
[351922014,1738845051606,-151.0,0.00014109,2]
[351922015,1738845051615,-1979.87,0.00014109,2]
[351922016,1738845051624,-10072.48,0.00014109,2]
[351922017,1738845051633,-151.0,0.00014109,2]
[351922018,1738845051643,-4183.41,0.00014109,2]
[351922019,1738845051652,-500.0,0.00014109,2]
[351922020,1738845051662,-521.44,0.00014109,2]
[351922021,1738845051671,-1468.71,0.00014109,2]
[351922022,1738845051681,-965.76,0.00014109,2]
[351922023,1738845051691,-1890.43,0.00014109,2]
[351922024,1738845051700,-500.0,0.00014109,2]
[351922025,1738845051709,-1790.44,0.00014109,2]
[351922026,1738845051719,-810.288646,0.00014109,2]
[351922027,1738845051729,-646.4,0.00014109,2]
[351922028,1738845051738,-1469.49,0.00014109,2]
[351922029,1738845051747,-3633.95,0.00014109,2]
[351922030,1738845051756,-500.0,0.00014109,2]
[351922031,1738845051765,-810.288646,0.00014109,2]
[351922032,1738845051775,-870.22,0.00014109,2]
[351922033,1738845051785,-500.0,0.00014109,2]
[351922034,1738845051795,-500.0,0.00014109,2]
[351922035,1738845051805,-500.0,0.00014109,2]
[351922036,1738845051814,-500.0,0.00014109,2]
[351922037,1738845051824,-151.0,0.00014109,2]
[351922038,1738845051834,-1111.42,0.00014109,2]
[351922039,1738845051844,-970.96,0.00014109,2]
[351922040,1738845051854,-1141.43,0.00014109,2]
[351922041,1738845051863,-500.0,0.00014109,2]
[351922042,1738845051872,-500.0,0.00014109,2]
[351922043,1738845051882,-1407.63,0.00014109,2]
[351922044,1738845051891,-844.39,0.00014109,2]
[351922045,1738845051901,-500.0,0.00014109,2]
[351922046,1738845051911,-796.93,0.00014109,2]
[351922047,1738845051920,-151.0,0.00014109,2]
[351922048,1738845051929,-1643.43,0.00014109,2]
[351922049,1738845051939,-3158.06820637,0.00014109,2]
[351922050,1738845052627,-400.08,0.000137,2]
[351922051,1738845052637,-400.08,0.000137,2]
[351922052,1738845052647,-400.08,0.000137,2]
[351922053,1738845052657,-400.08,0.000137,2]
[351922054,1738845052666,-400.08,0.000137,2]
[351922055,1738845052674,-400.08,0.000137,2]
[351922056,1738845052684,-400.08,0.000137,2]
[351922057,1738845052693,-400.08,0.000137,2]
[351922058,1738845052703,-400.08,0.000137,2]
[351922059,1738845052712,-400.08,0.000137,2]
[351922060,1738845052721,-400.08,0.000137,2]
[351922061,1738845052730,-400.08,0.000137,2]
[351922062,1738845052741,-400.08,0.000137,2]
[351922063,1738845052751,-400.08,0.000137,2]
[351922064,1738845052760,-400.08,0.000137,2]
[351922065,1738845052770,-473.50641725,0.00014029,2]
[351922066,1738845052779,-523.21179363,0.00014109,2]
[351922067,1738845052788,-151.0,0.00014156,2]
[351922068,1738845052798,-380.58711,0.00014156,2]
[351922069,1738845052807,-380.58711,0.00014156,2]
[351922070,1738845052816,-185.903807,0.00014156,2]
[351922071,1738845052826,-185.903807,0.00014156,2]
[351922072,1738845052835,-153.0,0.00014164,2]
[351922073,1738845052844,-1278.97486873,0.00014176,2]
[351922074,1738845052854,-160.0,0.00014181,4]
[351922075,1738845052862,-151.0,0.000142,2]
[351922076,1738845052872,-1000.0,0.00014209,2]
[351922077,1738845052881,-1000.0,0.00014221,2]
[351922078,1738845052890,-896.2458205,0.00014245,2]
[351922079,1738845052899,-160.0,0.00014245,2]
[351922080,1738845052909,-500.0,0.00014246,2]
[351922081,1738845052919,-151.0,0.00014246,2]
[351922082,1738845052928,-500.0,0.00014246,2]
[351922083,1738845052938,-500.0,0.00014246,2]
[351922084,1738845052947,-500.0,0.00014246,2]
[351922085,1738845052956,-151.0,0.00014246,2]
[351922086,1738845052965,-500.0,0.00014246,2]
[351922087,1738845052974,-500.0,0.00014246,2]
[351922088,1738845052983,-500.0,0.00014246,2]
[351922089,1738845052993,-302.12618787,0.00014246,2]
[351922090,1738845053003,-151.0,0.00014246,2]
[351922091,1738845053012,-500.0,0.00014246,2]
[351922092,1738845053021,-500.0,0.00014246,2]
[351922093,1738845053031,-500.0,0.00014246,2]
[351922094,1738845053040,-729.89,0.00014246,2]
[351922095,1738845053049,-500.0,0.00014246,2]
[351922096,1738845053059,-905.09,0.00014246,2]
[351922097,1738845053068,-500.0,0.00014246,2]
[351922098,1738845053078,-500.0,0.00014246,2]
[351922099,1738845053087,-500.0,0.00014246,2]
[351922100,1738845053096,-500.0,0.00014246,2]
[351922101,1738845053106,-687.79,0.00014246,2]
[351922102,1738845053115,-806.87,0.00014246,2]
[351922103,1738845053124,-151.0,0.00014246,2]
[351922104,1738845053134,-1012.02,0.00014246,2]
[351922105,1738845053143,-151.0,0.00014246,2]
[351922106,1738845053154,-500.0,0.00014246,2]
[351922107,1738845053163,-500.0,0.00014246,2]
[351922108,1738845053172,-600.86,0.00014246,2]
[351922109,1738845053182,-500.0,0.00014246,2]
[351922110,1738845053191,-500.0,0.00014246,2]
[351922111,1738845053338,-500.0,0.00014246,2]
[351922112,1738845053348,-500.0,0.00014246,2]
[351922113,1738845053358,-1210.77,0.00014246,2]
[351922114,1738845053368,-500.0,0.00014246,2]
[351922115,1738845053378,-331.55,0.00014246,2]
[351922116,1738845053388,-500.0,0.00014246,2]
[351922117,1738845053397,-500.0,0.00014246,2]
[351922118,1738845053406,-151.0,0.00014246,2]
[351922119,1738845053415,-197.44,0.00014246,2]
[351922120,1738845053425,-1782.42,0.00014246,2]
[351922121,1738845053435,-500.0,0.00014246,2]
[351922122,1738845053444,-248.78,0.00014246,2]
[351922123,1738845053454,-1898.5,0.00014246,2]
[351922124,1738845053464,-721.43,0.00014246,2]
[351922125,1738845053474,-500.0,0.00014246,2]
[351922126,1738845053484,-151.0,0.00014246,2]
[351922127,1738845053493,-151.0,0.00014246,2]
[351922128,1738845053503,-479.97331513,0.00014246,2]
[351922129,1738845053513,-278.921018,0.00014246,2]
[351922130,1738845053522,-151.0,0.00014246,2]
[351922131,1738845053532,-500.0,0.00014246,2]
[351922132,1738845053542,-869.21,0.00014246,2]
[351922133,1738845053551,-500.0,0.00014246,2]
[351922134,1738845053561,-1389.14,0.00014246,2]
[351922135,1738845053571,-1602.43,0.00014246,2]
[351922136,1738845053580,-152.331516,0.00014246,2]
[351922137,1738845053589,-500.0,0.00014246,2]
[351922138,1738845053598,-500.0,0.00014246,2]
[351922139,1738845053608,-380.58711,0.00014246,2]
[351922140,1738845053617,-500.0,0.00014246,2]
[351922141,1738845053627,-380.58711,0.00014246,2]
[351922142,1738845053637,-185.903807,0.00014246,2]
[351922143,1738845053646,-185.903807,0.00014246,2]
[351922144,1738845053656,-1064.84,0.00014246,2]
[351922145,1738845053665,-500.0,0.00014246,2]
[351922146,1738845053675,-500.0,0.00014246,2]
[351922147,1738845053686,-2354.32,0.00014246,2]
[351922148,1738845053696,-741.27858925,0.00014246,2]
[351922150,1738845829852,150.0,8e-05,2]
[351922151,1738845880852,150.0,8e-05,2]
[351922152,1738845944139,-560.01,0.00010959,2]
[351922153,1738845944160,-343.65103278,0.00011484,2]
[351922154,1738845945165,-230.89516322,0.00011484,2]
[351922155,1738845945185,-293.40098828,0.000116,2]
[351922156,1738846029097,-3657.84107903,0.000116,2]
[351922157,1738846029120,-1270.27408485,0.00011735,2]
[351922158,1738846029146,-300.0,0.00011959,2]
[351922159,1738846029169,-8171.92239128,0.0001196,2]
[351922160,1738846044115,-1073.78770199,0.0001196,2]
[351922161,1738846052123,-1215.60531218,0.0001196,2]
[351922162,1738846148112,-14438.68459455,0.0001196,2]
[351922163,1738846148134,-900.0,0.00012054,2]
[351922164,1738846148156,-490.9970755,0.00012198,2]
[351922165,1738846148178,-439.01462975,0.00012596,2]
[351922166,1738846161627,15512.64106826,0.00012,2]
[351922167,1738846162199,-1211.42686081,0.00012,2]
[351922168,1738846166315,-33.93207093,0.00012,2]
[351922169,1738846166336,-8377.0,0.00012,2]
[351922170,1738846166357,-5633.40351755,0.00012,2]
[351922171,1738846168078,-2743.59648245,0.00012,2]
[351922172,1738846168099,-8377.0,0.00012,2]
[351922173,1738846168122,-8377.0,0.00012,2]
[351922174,1738846168143,-13802.0,0.00012,2]
[351922175,1738846168164,-6901.0,0.00012,2]
[351922176,1738846168185,-6901.0,0.00012,2]
[351922177,1738846168205,-6159.18125607,0.00012,2]
[351922178,1738846173102,-741.81874393,0.00012,2]
[351922179,1738846173127,-6744.98359167,0.00012,2]
[351922196,1738846232382,-156.01640833,0.00012,2]
[351922197,1738846232392,-345.10546044,0.00012596,2]
[351922199,1738846232401,-1596.32959827,0.0001314,2]
[351922200,1738846232410,-7438.69753278,0.00013208,2]
[351922201,1738846232422,-900.0,0.00013424,2]
[351922203,1738846232431,-354.6875562,0.00013425,2]
[351922205,1738846232441,-165.311845,0.0001356,3]
[351922206,1738846232451,-354.6875562,0.00013562,2]
[351922207,1738846232461,-354.6875562,0.00013562,2]
[351922208,1738846232471,-354.6875562,0.00013562,2]
[351922209,1738846232480,-436.45367885,0.00013598,2]
[351922210,1738846232489,-181.36124753,0.00013598,2]
[351922211,1738846232498,-3000.0,0.00013598,2]
[351922212,1738846232507,-354.6875562,0.000136,2]
[351922213,1738846232517,-709.3751124,0.000136,2]
[351922214,1738846232526,-500.0,0.00013673,2]
[351922215,1738846232535,-500.0,0.00013673,2]
[351922216,1738846232545,-500.0,0.00013697,2]